bitfinex/quotes_SOLUSD_20250421
["timestamp","ask_amount","ask_price","bid_price","bid_amount"]
[1745259405383,19.77630889,135.12,135.07,19.77630889]
[1745259405582,19.77630889,135.1,135.05,7.40445064]
[1745259405820,19.77630889,135.1,135.05,27.18075953]
[1745259406113,19.77630889,135.08,135.04,89.17510229]
[1745259406314,19.77630889,135.08,135.04,7.40510231]
[1745259407215,19.77630889,135.08,135.03,27.24486552]
[1745259407510,19.77630889,135.08,135.03,0.063]
[1745259407511,39.77630889,135.07,135.03,0.063]
[1745259408293,19.77630889,135.08,135.03,27.2449346]
[1745259408480,39.77630889,135.09,135.04,19.77630889]
[1745259408889,45.77630889,135.1,135.05,19.77630889]
[1745259409113,108.0727,135.11,135.07,19.77630889]
[1745259409114,20.0,135.11,135.07,19.77630889]
[1745259409325,19.77630889,135.12,135.08,19.77630889]
[1745259409495,26.0,135.11,135.08,19.77630889]
[1745259409689,26.0,135.11,135.07,19.77630889]
[1745259411416,26.0,135.11,135.08,7.40302043]
[1745259415090,26.0,135.1,135.08,27.17932932]
[1745259416708,20.0,135.13,135.09,19.77630889]
[1745259416919,26.0,135.12,135.09,19.77630889]
[1745259417111,26.0,135.12,135.08,27.17932932]
[1745259417416,39.77630889,135.13,135.08,27.17932932]
[1745259417629,65.77630889,135.13,135.08,27.17932932]
[1745259417912,46.0,135.13,135.09,19.77630889]
[1745259418304,46.0,135.13,135.08,7.40302043]
[1745259418305,26.0,135.13,135.1,19.77630889]
[1745259418497,0.03,135.14,135.1,19.77630889]
[1745259418897,0.03,135.14,135.1,27.17774532]
[1745259419099,0.03,135.14,135.13,19.77630889]
[1745259420129,0.03,135.14,135.12,19.77630889]
[1745259420699,0.03,135.14,135.13,19.77630889]
[1745259420893,0.03,135.14,135.13,27.1765901]
[1745259425934,1e-08,135.14,135.13,127.73840051]
[1745259428731,1e-08,135.14,135.13,89.17028119]
[1745259428940,1e-08,135.14,135.13,108.94659008]
[1745259430112,1e-08,135.14,135.13,127.73840051]
[1745259433223,0.03,135.18,135.13,183.24050958]
[1745259433412,0.03,135.18,135.17,19.77630889]
[1745259434329,1e-08,135.18,135.17,38.56811932]
[1745259434642,1e-08,135.19,135.17,45.96621061]
[1745259434862,1e-08,135.19,135.18,19.77630889]
[1745259435159,0.03,135.22,135.19,18.79181043]
[1745259435321,0.03,135.22,135.21,19.77630889]
[1745259435721,0.03,135.22,135.18,81.76999998]
[1745259436049,0.03,135.22,135.21,19.77630889]
[1745259436623,0.03,135.22,135.21,27.17221155]
[1745259436823,0.03,135.22,135.21,7.39590266]
[1745259437052,0.03,135.22,135.21,27.17221155]
[1745259438051,0.03,135.22,135.21,7.39590266]
[1745259438241,0.03,135.22,135.21,19.77630889]
[1745259440253,0.03,135.22,135.21,27.17221155]
[1745259440766,1e-08,135.22,135.21,45.96402198]
[1745259440922,0.03,135.28,135.21,183.20329197]
[1745259441121,0.03,135.28,135.26,19.77630889]
[1745259441328,0.03,135.28,135.25,19.77630889]
[1745259442360,0.03,135.28,135.26,7.39316871]
[1745259442726,0.03,135.28,135.24,7.39426205]
[1745259442946,39.80630889,135.28,135.24,7.39426205]
[1745259443456,19.77630889,135.27,135.22,7.39535571]
[1745259443660,46.03,135.28,135.22,7.39535571]
[1745259443661,65.80630889,135.28,135.23,19.77630889]
[1745259444031,46.03,135.28,135.24,19.77630889]
[1745259444546,65.80630889,135.28,135.23,7.39480884]
[1745259444847,65.80630889,135.28,135.23,27.17111773]
[1745259445545,46.03,135.28,135.24,19.77630889]
[1745259445749,0.03,135.28,135.23,25.88183095]
[1745259445957,0.03,135.28,135.24,19.77630889]
[1745259446143,19.80630889,135.28,135.23,27.17111773]
[1745259446461,19.77630889,135.27,135.23,7.39480884]
[1745259446954,19.77630889,135.26,135.22,27.17148471]
[1745259447145,19.77630889,135.26,135.22,7.39517582]
[1745259447445,19.77630889,135.26,135.22,27.17148471]
[1745259447637,54.73965556,135.27,135.22,7.39517582]
[1745259447839,47.34690889,135.27,135.23,19.77630889]
[1745259448050,47.34690889,135.27,135.22,27.17148471]
[1745259448251,54.73988017,135.27,135.22,27.17148471]
[1745259449160,27.5706,135.27,135.23,19.77630889]
[1745259449382,0.03,135.28,135.26,19.77630889]
[1745259449665,0.03,135.28,135.25,19.77630889]
[1745259450571,0.03,135.28,135.26,7.39316871]
[1745259451341,0.03,135.28,135.26,27.1694776]
[1745259453245,0.03,135.28,135.27,19.77630889]
[1745259453455,0.03,135.28,135.26,89.19316871]
[1745259453961,0.03,135.28,135.24,27.17057094]
[1745259454142,0.03,135.28,135.25,19.77630889]
[1745259454341,0.03,135.28,135.24,27.17057094]
[1745259455364,0.03,135.28,135.25,19.77630889]
[1745259456145,0.03,135.28,135.24,27.17057094]
[1745259458346,0.03,135.28,135.25,19.77630889]
[1745259458544,0.03,135.28,135.26,19.77630889]
[1745259458767,0.03,135.28,135.25,19.77630889]
[1745259459275,0.03,135.28,135.27,19.77630889]
[1745259459771,0.03,135.28,135.24,44.67172761]
[1745259459950,0.03,135.28,135.27,19.77630889]
[1745259460450,0.03,135.28,135.27,7.39262216]
[1745259461166,0.03,135.28,135.27,27.16893105]
[1745259462667,0.03,135.28,135.27,7.39262216]
[1745259463182,0.03,135.28,135.27,27.16893105]
[1745259463972,0.03,135.28,135.27,7.39262216]
[1745259465278,0.03,135.28,135.27,19.77630889]
[1745259465452,0.03,135.28,135.27,12.5813537]
[1745259466676,0.03,135.28,135.27,19.97397586]
[1745259466969,0.03,135.28,135.27,7.39262216]
[1745259467681,0.03,135.28,135.25,19.97482291]
[1745259468174,0.03,135.28,135.24,101.77551852]
[1745259468376,12.5813537,135.27,135.22,7.39535571]
[1745259468560,12.5813537,135.27,135.22,19.97670941]
[1745259468760,12.5813537,135.27,135.23,19.97564817]
[1745259468955,40.00355121,135.28,135.23,7.39429447]
[1745259469161,12.5813537,135.27,135.23,7.39429447]
[1745259469363,12.5813537,135.27,135.23,19.97564817]
[1745259469866,19.9741488,135.27,135.22,19.97651917]
[1745259470068,12.5813537,135.26,135.22,19.97651917]
[1745259470477,32.5813537,135.24,135.2,89.19628006]
[1745259470658,12.5813537,135.23,135.2,7.39628006]
[1745259470862,58.5813537,135.24,135.2,7.39628006]
[1745259471787,20.0,135.26,135.22,12.5813537]
[1745259471971,46.0,135.26,135.22,12.5813537]
[1745259472356,58.5813537,135.26,135.22,12.5813537]
[1745259472569,58.5813537,135.26,135.2,25.88740432]
[1745259472768,58.5813537,135.26,135.22,12.5813537]
[1745259473383,58.5813537,135.26,135.21,12.5813537]
[1745259474094,58.5813537,135.26,135.22,7.39535571]
[1745259474960,58.5813537,135.26,135.22,19.97670941]
[1745259475665,38.5813537,135.26,135.22,19.97670941]
[1745259476185,38.5813537,135.26,135.22,7.39535571]
[1745259477490,26.0,135.26,135.22,19.97670941]
[1745259479781,38.5813537,135.26,135.22,7.39535571]
[1745259479995,38.5813537,135.26,135.21,19.97725636]
[1745259480286,12.5813537,135.25,135.21,7.39590266]
[1745259480491,12.5813537,135.24,135.21,7.39590266]
[1745259480703,12.5813537,135.23,135.2,89.19621209]
[1745259480885,12.5813537,135.23,135.2,7.39621209]
[1745259481070,12.5813537,135.24,135.2,7.39621209]
[1745259482700,7.39391262,135.25,135.2,7.39621209]
[1745259482994,53.39337885,135.26,135.2,19.97756579]
[1745259483296,12.5813537,135.25,135.2,19.97756579]
[1745259483883,38.5813537,135.23,135.18,7.39754401]
[1745259484091,38.5813537,135.22,135.18,7.39754401]
[1745259484409,26.0,135.22,135.18,7.39754401]
[1745259484592,26.0,135.22,135.18,19.97889771]
[1745259484987,38.5813537,135.22,135.18,7.39754401]
[1745259485202,26.0,135.22,135.18,19.97889771]
[1745259485808,27.39390348,135.25,135.19,12.5813537]
[1745259486006,58.5813537,135.25,135.2,12.5813537]
[1745259486190,58.5813537,135.25,135.18,25.89140404]
[1745259486191,12.5813537,135.24,135.19,12.5813537]
[1745259486497,12.5813537,135.23,135.18,19.97889771]
[1745259486710,12.5813537,135.22,135.18,19.97889771]
[1745259487077,20.0,135.23,135.18,7.39754401]
[1745259487282,12.5813537,135.22,135.18,7.39754401]
[1745259487483,12.5813537,135.22,135.18,19.97889771]
[1745259488004,32.5813537,135.21,135.16,29.5843537]
[1745259488190,32.5813537,135.21,135.16,12.6443537]
[1745259489107,32.5813537,135.21,135.16,20.04282425]
[1745259490107,12.5813537,135.2,135.16,0.063]
[1745259490317,12.5813537,135.18,135.16,0.063]
[1745259491184,20.0,135.19,135.16,0.063]
[1745259491494,45.0689537,135.22,135.18,12.5813537]
[1745259491712,26.0,135.22,135.18,12.5813537]
[1745259492985,38.5813537,135.22,135.17,12.5813537]
[1745259493200,45.97671738,135.22,135.18,7.39754401]
[1745259493901,12.5813537,135.21,135.18,7.39754401]
[1745259494115,12.5813537,135.21,135.17,7.39809129]
[1745259494601,26.0,135.22,135.17,19.97944499]
[1745259494816,38.5813537,135.22,135.17,19.97944499]
[1745259495025,26.0,135.22,135.17,19.97944499]
[1745259495229,38.5813537,135.22,135.17,19.97944499]
[1745259495613,45.97688668,135.22,135.17,19.97944499]
[1745259495925,12.5813537,135.22,135.17,19.97944499]
[1745259496731,32.5813537,135.21,135.17,7.39809129]
[1745259496960,38.5813537,135.2,135.16,0.063]
[1745259497144,12.5813537,135.18,135.16,0.063]
[1745259497830,32.5813537,135.19,135.16,0.063]
[1745259499458,20.0,135.19,135.16,0.063]
[1745259499607,32.5813537,135.19,135.16,0.063]
[1745259501950,20.0,135.19,135.16,0.063]
[1745259503442,32.5813537,135.19,135.16,0.063]
[1745259506430,20.0,135.19,135.16,0.063]
[1745259508432,21.5204,135.23,135.18,12.5813537]
[1745259508738,41.49658293,135.23,135.18,12.5813537]
[1745259508929,38.5813537,135.22,135.17,12.5813537]
[1745259509130,12.5813537,135.22,135.18,7.39754401]
[1745259509325,38.5813537,135.22,135.18,7.39754401]
[1745259509726,26.0,135.22,135.18,19.97889771]
[1745259509953,38.5813537,135.22,135.18,7.39754401]
[1745259510137,32.5813537,135.2,135.16,0.063]
[1745259510340,12.5813537,135.19,135.16,0.063]
[1745259510543,12.5813537,135.19,135.16,7.46151212]
[1745259510744,32.5813537,135.2,135.16,7.46151212]
[1745259511040,20.0,135.2,135.16,20.04286582]
[1745259511453,32.5813537,135.2,135.16,7.46151212]
[1745259512640,20.0,135.2,135.16,20.04286582]
[1745259513150,32.5813537,135.2,135.16,7.46151212]
[1745259513339,20.0,135.2,135.16,20.04286582]
[1745259513538,46.0,135.22,135.17,12.5813537]
[1745259513734,58.5813537,135.22,135.17,12.5813537]
[1745259514141,46.0,135.22,135.17,12.5813537]
[1745259514341,46.0,135.22,135.18,12.5813537]
[1745259514664,20.0,135.22,135.17,12.5813537]
[1745259514844,32.5813537,135.22,135.17,12.5813537]
[1745259515035,20.0,135.22,135.17,12.5813537]
[1745259515235,32.5813537,135.22,135.18,7.39754401]
[1745259517667,20.0,135.22,135.18,19.97889771]
[1745259517843,20.0,135.25,135.21,12.5813537]
[1745259518236,32.5813537,135.25,135.2,12.5813537]
[1745259518936,32.5813537,135.25,135.21,7.39590266]
[1745259519172,26.0,135.26,135.22,12.5813537]
[1745259519336,38.5813537,135.26,135.21,19.97725636]
[1745259519645,38.5813537,135.26,135.21,38.46701303]
[1745259519959,12.5813537,135.25,135.21,7.39590266]
[1745259520173,12.5813537,135.25,135.21,19.97725636]
[1745259520656,12.5813537,135.25,135.21,7.39590266]
[1745259520841,12.5813537,135.24,135.21,7.39590266]
[1745259521042,12.5813537,135.24,135.2,7.3964497]
[1745259521964,12.5813537,135.24,135.2,19.9778034]
[1745259522859,12.5813537,135.24,135.2,7.3964497]
[1745259523660,27.39373739,135.25,135.2,7.3964497]
[1745259523852,12.5813537,135.24,135.2,19.9778034]
[1745259524955,12.5813537,135.23,135.2,7.3964497]
[1745259526074,12.5813537,135.23,135.19,7.39699681]
[1745259527177,12.5813537,135.23,135.18,94.3813537]
[1745259527178,12.5813537,135.22,135.18,7.39734177]
[1745259527476,12.5813537,135.21,135.18,7.39734177]
[1745259527646,12.5813537,135.21,135.16,12.6443537]
[1745259527647,12.5813537,135.2,135.16,0.063]
[1745259527848,12.5813537,135.2,135.16,7.4613769]
[1745259529164,20.0,135.21,135.16,7.4613769]
[1745259529165,20.0,135.21,135.16,20.0427306]
[1745259529375,12.5813537,135.22,135.18,12.5813537]
[1745259529745,12.5813537,135.21,135.16,38.53932722]
[1745259530970,12.5813537,135.21,135.16,7.4613769]
[1745259530971,12.5813537,135.2,135.16,7.4613769]
[1745259531366,32.5813537,135.21,135.16,20.0427306]
[1745259531748,39.97727872,135.21,135.16,20.0427306]
[1745259532170,32.5813537,135.21,135.16,20.0427306]
[1745259532356,39.97734704,135.21,135.16,20.0427306]
[1745259532752,20.0,135.21,135.16,20.0427306]
[1745259533175,32.5813537,135.21,135.16,20.0427306]
[1745259533475,20.0,135.21,135.16,20.0427306]
[1745259533668,32.5813537,135.21,135.16,20.0427306]
[1745259534385,20.0,135.21,135.16,20.0427306]
[1745259534559,46.0,135.23,135.17,12.5813537]
[1745259534761,12.5813537,135.22,135.17,12.5813537]
[1745259534957,58.5813537,135.23,135.18,12.5813537]
[1745259535155,26.0,135.23,135.19,12.5813537]
[1745259535862,26.0,135.23,135.2,12.5813537]
[1745259536153,26.0,135.23,135.2,7.3964497]
[1745259537781,20.0,135.25,135.2,7.3964497]
[1745259537971,38.5813537,135.24,135.2,7.3964497]
[1745259538695,26.0,135.24,135.2,7.3964497]
[1745259538872,38.5813537,135.24,135.2,7.3964497]
[1745259539776,26.0,135.24,135.2,19.9778034]
[1745259540460,26.0,135.24,135.2,7.3964497]
[1745259540660,12.5813537,135.22,135.19,7.39676706]
[1745259541274,12.5813537,135.22,135.18,7.39754401]
[1745259541965,12.5813537,135.21,135.17,89.19787281]
[1745259542189,32.5813537,135.21,135.17,89.19787281]
[1745259543183,32.5813537,135.21,135.16,0.063]
[1745259543184,32.5813537,135.19,135.16,0.063]
[1745259543393,32.5813537,135.19,135.16,7.4615932]
[1745259543576,12.5813537,135.18,135.16,0.063]
[1745259544188,32.5813537,135.17,135.16,0.063]
[1745259544883,32.5813537,135.17,135.16,0.12882727]
[1745259544884,51.37316413,135.17,135.16,0.12882727]
[1745259545190,58.77125542,135.17,135.16,0.12882727]
[1745259546066,46.0,135.17,135.16,0.12882727]
[1745259546587,20.0,135.19,135.16,7.52738518]
[1745259546883,20.0,135.19,135.16,20.10873888]
[1745259547067,20.0,135.21,135.17,12.5813537]
[1745259547275,20.0,135.21,135.17,19.9789571]
[1745259547489,32.5813537,135.21,135.17,19.9789571]
[1745259548279,20.0,135.21,135.17,19.9789571]
[1745259549179,38.5813537,135.22,135.18,12.5813537]
[1745259549180,26.0,135.22,135.18,12.5813537]
[1745259549379,38.5813537,135.22,135.17,19.9789571]
[1745259549973,26.0,135.22,135.18,12.5813537]
[1745259550491,38.5813537,135.22,135.17,19.9789571]
[1745259550699,45.97691072,135.22,135.17,19.9789571]
[1745259550873,33.39555702,135.22,135.17,19.9789571]
[1745259551075,38.5813537,135.22,135.17,19.9789571]
[1745259553872,12.5813537,135.2,135.17,7.3976034]
[1745259554979,32.5813537,135.21,135.17,7.3976034]
[1745259555195,20.0,135.21,135.17,19.9789571]
[1745259555696,32.5813537,135.21,135.17,19.9789571]
[1745259555887,33.39536315,135.22,135.19,12.5813537]
[1745259555888,26.0,135.22,135.19,12.5813537]
[1745259556275,38.5813537,135.22,135.18,12.5813537]
[1745259556782,26.0,135.22,135.18,12.5813537]
[1745259557985,26.0,135.22,135.19,12.5813537]
[1745259558489,26.0,135.22,135.18,12.5813537]
[1745259558688,12.5813537,135.21,135.17,7.3976034]
[1745259559204,19.97735007,135.21,135.17,7.3976034]
[1745259559704,12.5813537,135.2,135.17,7.3976034]
[1745259560079,19.97735007,135.21,135.17,7.3976034]
[1745259560281,19.97735007,135.21,135.16,12.6443537]
[1745259560282,32.5813537,135.2,135.16,7.46136918]
[1745259560491,32.5813537,135.2,135.16,0.063]
[1745259560492,12.5813537,135.19,135.16,0.063]
[1745259560784,32.5813537,135.18,135.16,0.063]
[1745259561181,20.0,135.18,135.16,0.063]
[1745259561700,32.5813537,135.18,135.16,0.063]
[1745259562199,20.0,135.18,135.16,0.063]
[1745259562407,32.5813537,135.18,135.16,0.063]
[1745259563479,12.5813537,135.17,135.16,0.063]
[1745259563994,38.5813537,135.17,135.16,0.063]
[1745259564403,26.0,135.17,135.16,0.063]
[1745259565103,38.5813537,135.17,135.16,0.063]
[1745259565487,26.0,135.17,135.16,0.063]
[1745259567898,38.5813537,135.17,135.16,0.063]
[1745259569016,26.0,135.17,135.16,0.063]
[1745259569185,38.5813537,135.17,135.16,0.063]
[1745259570707,26.0,135.17,135.16,0.063]
[1745259572808,45.97944499,135.17,135.16,0.063]
[1745259572987,38.77125542,135.17,135.16,0.063]
[1745259575709,64.79181043,135.15,135.14,0.063]
[1745259575885,77.37316413,135.15,135.14,0.063]
[1745259576700,58.5813537,135.15,135.14,0.063]
[1745259576992,65.98053978,135.15,135.14,0.063]
[1745259585200,84.77235021,135.15,135.14,0.063]
[1745259590724,38.79181043,135.12,135.11,0.063]
[1745259590907,64.79181043,135.09,135.07,0.06582727]
[1745259591098,20.0,135.07,135.06,0.063]
[1745259593327,27.40356852,135.07,135.06,0.063]
[1745259594742,58.77673265,135.07,135.06,0.063]
[1745259601620,64.79181043,135.04,135.03,0.063]
[1745259601828,127.69857893,135.04,135.03,0.063]
[1745259602122,116.31198177,135.04,135.03,0.063]
[1745259602510,135.1037922,135.04,135.03,0.063]
[1745259602705,135.1037922,135.04,135.02,0.063]
[1745259602906,46.0,135.01,135.0,0.063]
[1745259603227,58.5813537,135.01,135.0,0.063]
[1745259603422,77.37316413,135.01,135.0,0.063]
[1745259604031,64.79181043,134.99,134.98,0.063]
[1745259604231,84.78112027,134.99,134.98,0.063]
[1745259604622,20.0,135.01,134.98,0.063]
[1745259604824,38.5813537,135.0,134.98,0.063]
[1745259605022,12.5813537,135.0,134.98,0.063]
[1745259605228,46.0,135.01,134.98,0.063]
[1745259605433,58.5813537,135.01,134.98,0.063]
[1745259605628,20.0,135.06,134.99,20.5989537]
[1745259605832,20.0,135.06,135.01,12.5813537]
[1745259606030,20.0,135.06,135.02,12.5813537]
[1745259606242,32.5813537,135.06,135.02,7.40631017]
[1745259606842,32.5813537,135.06,135.01,94.3813537]
[1745259606843,12.5813537,135.04,135.01,89.20673026]
[1745259607337,20.0,135.06,135.01,89.20673026]
[1745259607338,12.5813537,135.05,135.01,89.20673026]
[1745259608248,12.5813537,135.03,135.01,81.8]
[1745259608422,12.5813537,135.02,134.99,15.42532129]
[1745259608937,12.5813537,135.02,134.99,8.0176]
[1745259609113,53.4052673,135.04,134.98,89.27121623]
[1745259609114,32.5813537,135.0,134.98,0.063]
[1745259609314,12.5813537,134.99,134.98,0.063]
[1745259610522,19.98930984,134.99,134.98,0.063]
[1745259610843,38.78112027,134.99,134.98,0.063]
[1745259611427,45.96336202,134.99,134.98,0.063]
[1745259615650,64.79181043,134.96,134.95,0.063]
[1745259615829,84.55540588,134.96,134.95,0.063]
[1745259616446,65.76359545,134.96,134.95,0.063]
[1745259616750,20.0,134.96,134.95,0.063]
[1745259617825,39.76359545,134.96,134.95,0.063]
[1745259618524,65.96500872,134.96,134.95,0.063]
[1745259620157,39.76359545,134.96,134.95,0.063]
[1745259621662,47.17319829,134.96,134.95,0.063]
[1745259621845,39.76359545,134.96,134.95,0.063]
[1745259622465,47.17319829,134.96,134.95,0.063]
[1745259622941,65.96500872,134.96,134.95,0.063]
[1745259624233,47.17319829,134.96,134.95,0.063]
[1745259626262,39.76359545,134.96,134.95,0.063]
[1745259627262,20.0,134.96,134.95,0.063]
[1745259627462,39.76359545,134.96,134.95,0.063]
[1745259628760,47.17319829,134.96,134.95,0.063]
[1745259629139,39.76359545,134.96,134.95,0.063]
[1745259629762,20.0,134.96,134.95,0.063]
[1745259635072,46.0,134.98,134.95,0.063]
[1745259635276,58.64413258,134.98,134.95,0.063]
[1745259636674,20.0,135.02,134.97,14.20023258]
[1745259636971,20.03,135.04,135.0,12.64413258]
[1745259638152,32.67413258,135.04,135.01,7.40685875]
[1745259639065,0.03,135.04,135.01,20.05099133]
[1745259639249,0.03,135.04,135.02,19.73068127]
[1745259639554,0.03,135.04,135.01,108.93754002]
[1745259639855,0.03,135.04,135.01,89.20685875]
[1745259640764,19.73068127,135.03,135.0,7.4071763]
[1745259640942,19.73068127,135.02,135.0,7.4071763]
[1745259641146,39.73068127,135.02,134.99,7.40769543]
[1745259641669,39.73068127,135.02,134.98,115.52352303]
[1745259641859,39.73068127,135.02,134.98,95.79284176]
[1745259642048,20.0,135.0,134.98,81.8]
[1745259642242,20.0,135.0,134.97,8.96487327]
[1745259642949,47.13817746,135.0,134.95,101.59368127]
[1745259643189,20.0,134.97,134.95,81.863]
[1745259643389,20.0,134.97,134.95,0.063]
[1745259643390,19.73068127,134.96,134.95,0.063]
[1745259644278,39.73068127,134.97,134.95,0.063]
[1745259644462,20.0,134.97,134.95,0.063]
[1745259645973,45.73068127,134.98,134.95,0.063]
[1745259646279,20.0,134.99,134.95,27.20383317]
[1745259646467,65.73068127,135.01,134.97,19.73068127]
[1745259646653,65.73068127,135.01,134.96,19.73068127]
[1745259646855,73.13754584,135.01,134.96,19.73068127]
[1745259647956,73.13754584,135.01,134.97,7.40905386]
[1745259648156,46.0,135.01,134.97,27.13973513]
[1745259648477,73.13765725,135.01,134.96,33.72461596]
[1745259648682,65.73068127,135.01,134.96,33.72461596]
[1745259649271,73.13763028,135.01,134.96,33.72461596]
[1745259649471,19.73068127,135.0,134.96,33.72461596]
[1745259649651,19.73068127,134.99,134.95,90.82909963]
[1745259649856,19.73068127,134.98,134.95,89.27299963]
[1745259650080,19.73068127,134.98,134.95,81.863]
[1745259651087,19.73068127,134.98,134.95,89.27313705]
[1745259651264,47.13888589,134.99,134.95,81.863]
[1745259651464,47.13888589,134.99,134.95,89.27302879]
[1745259652882,20.0,134.99,134.95,89.27302879]
[1745259653095,46.0,135.01,134.96,19.73068127]
[1745259653298,20.0,134.99,134.95,89.27302879]
[1745259653472,39.73068127,134.99,134.95,89.27302879]
[1745259653981,19.73068127,134.98,134.95,81.863]
[1745259654293,20.0,134.99,134.95,81.863]
[1745259654294,19.73068127,134.97,134.95,81.863]
[1745259654698,39.73068127,134.97,134.95,81.863]
[1745259655001,27.14028411,134.96,134.95,0.063]
[1745259658295,39.73068127,134.97,134.95,0.063]
[1745259658975,19.73068127,134.96,134.95,0.063]
[1745259659888,39.73068127,134.97,134.95,0.063]
[1745259660194,19.73068127,134.96,134.95,0.063]
[1745259662704,45.93209454,134.96,134.95,0.063]
[1745259669510,27.40931139,134.97,134.95,0.063]
[1745259669802,12.65162061,134.96,134.95,0.063]
[1745259670170,31.44343104,134.96,134.95,0.063]
[1745259671594,38.85303388,134.96,134.95,0.063]
[1745259674677,7.40960284,134.96,134.95,0.063]
[1745259674987,12.65162061,134.96,134.95,0.063]
[1745259676079,20.06122345,134.96,134.95,0.063]
[1745259679496,38.85303388,134.96,134.95,0.063]
[1745259680923,12.65162061,134.96,134.95,0.063]
[1745259682430,20.06122345,134.96,134.95,0.063]
[1745259682830,12.65162061,134.96,134.95,0.063]
[1745259683430,20.06122345,134.96,134.95,0.063]
[1745259684928,12.65162061,134.96,134.95,0.063]
[1745259685533,20.0,134.97,134.95,0.063]
[1745259685910,32.65162061,134.97,134.95,0.063]
[1745259687062,12.65162061,134.96,134.95,0.063]
[1745259688536,32.65162061,134.97,134.95,0.063]
[1745259691335,20.0,134.97,134.95,0.063]
[1745259691633,82.91902924,135.0,134.95,14.27202061]
[1745259691813,12.65162061,134.99,134.95,1.6204]
[1745259692013,49.51162061,135.0,134.95,14.27202061]
[1745259692224,36.86,135.0,134.95,1.6204]
[1745259692416,12.65162061,134.99,134.95,1.6204]
[1745259692722,36.86,135.0,134.96,12.65162061]
[1745259692927,20.0,135.02,134.98,12.65162061]
[1745259693118,32.65162061,135.02,134.98,12.65162061]
[1745259693321,26.0,135.01,134.98,12.65162061]
[1745259693732,26.0,135.01,134.98,20.05972866]
[1745259693934,36.87,135.04,134.99,12.65162061]
[1745259694215,70.27529405,135.04,134.99,12.65162061]
[1745259694633,82.92691466,135.04,134.99,12.65162061]
[1745259694819,49.52162061,135.04,134.99,12.65162061]
[1745259695044,49.52162061,135.04,135.01,12.65162061]
[1745259695045,0.03,135.04,135.01,12.65162061]
[1745259695225,0.03,135.04,135.01,94.45162061]
[1745259695559,0.03,135.04,135.02,12.65162061]
[1745259695852,0.03,135.04,135.01,101.85832366]
[1745259697414,12.68162061,135.04,135.01,89.20670305]
[1745259697730,32.68162061,135.04,135.01,81.8]
[1745259698041,32.68162061,135.04,135.01,89.2068564]
[1745259698513,32.68162061,135.04,135.01,81.8]
[1745259698948,77.30126947,135.02,134.96,1.6602]
[1745259699124,20.0,135.0,134.96,1.6602]
[1745259699443,32.65162061,135.0,134.96,1.6602]
[1745259700132,32.65162061,135.0,134.96,9.06965203]
[1745259700836,32.65162061,134.98,134.95,81.863]
[1745259701411,20.0,134.98,134.95,81.863]
[1745259701615,39.75496643,134.98,134.95,81.863]
[1745259702040,19.75496643,134.97,134.95,81.863]
[1745259703035,27.40851875,134.98,134.95,89.27298537]
[1745259703036,20.0,134.98,134.95,89.27298537]
[1745259703244,19.75496643,134.99,134.95,109.0279518]
[1745259703545,20.0,135.0,134.96,19.75496643]
[1745259704122,20.0,135.0,134.96,27.16430569]
[1745259704123,39.75496643,135.0,134.96,27.16430569]
[1745259704927,39.75496643,135.0,134.96,7.40933926]
[1745259705953,19.75496643,134.99,134.95,81.863]
[1745259706356,19.75496643,134.99,134.95,89.2731321]
[1745259707139,20.0,135.0,134.96,19.75496643]
[1745259707351,39.75496643,135.0,134.95,89.2731321]
[1745259707642,19.75496643,134.99,134.95,109.02810878]
[1745259708036,19.75496643,134.99,134.95,89.27314235]
[1745259708650,19.75496643,134.99,134.95,109.02810878]
[1745259708837,20.0,135.0,134.96,19.75496643]
[1745259709023,39.75496643,135.0,134.96,19.75496643]
[1745259710050,20.0,135.02,134.98,19.75496643]
[1745259710349,39.75496643,134.99,134.96,81.8]
[1745259710528,19.75496643,134.98,134.96,81.8]
[1745259710728,19.75496643,134.97,134.96,81.8]
[1745259711241,39.75496643,134.97,134.96,81.8]
[1745259711836,20.0,134.97,134.96,81.8]
[1745259712639,19.75496643,134.99,134.96,81.8]